Cogmind - Beta 14 @@@ ROGUE MODE // 2024.08.08 @ 00:27:55 Player: ktur Result: Self-destructed Performance ------------- Evolutions (6) 3000 Regions Visited (12) 2400 Robots Destroyed (73) 365 Value Destroyed (2859) 2859 Prototype IDs (30) 600 Alien Tech Used (0) 0 Bonus (1580) 1580 TOTAL SCORE: 10804 Bonus ------- High Alert Combat Kills 49 Follower Combat Kills 50 Registered with UFD 300 Met Warlord at Base 500 MAIN.C Attacked Warlord 500 Warlord Defense Kills 528 Friendly Fire -347 Cogmind --------- Core Integrity 1133/1150 Matter 300/300 Energy 13/100 System Corruption 24% Temperature Cool (0) Movement Rolling (110) Ox4 Location -4/Factory Parts ------- > --- POWER (1+1) ------ (None) > --- PROPULSION (4) --- Overtuned Huge Scrapsphere > --- UTILITY (10) ----- Scrap Suit Huge Storage Unit Advanced Terrain Scan Processor Power Bank > --- WEAPON (4) ------- Cooled Pulse Rifle > --- INVENTORY (25) --- Combat Linear Gravjet Combat Linear Gravjet Advanced Cooling System Advanced Cooling System Experimental Matter Compressor (500) Makeshift Hacking Suite Makeshift Hacking Suite Vortex Driver (30) Vortex Driver (30) Overtuned Barrage Gun Overtuned Coil Gun Mini Grenade Launcher Datajack CPS Tube (2) CPS Tube (2) CPS Tube (2) CPS Tube (2) Vortex Trap Vortex Trap Peak State ------------ > --- POWER ------------ Antimatter Reactor Vortex Chain Reactor > --- PROPULSION ------- Overtuned Huge Scrapsphere > --- UTILITY ---------- Scrap Suit Huge Storage Unit Enhanced Optical Array Advanced Terrain Scan Processor Experimental Target Analyzer Enhanced Scrap Shield Improved Shield Generator Power Bank > --- WEAPON ----------- Cooled Pulse Rifle Cooled Pulse Rifle Vortex Driver Kinetic Spear > --- INVENTORY -------- Advanced Cooling System Advanced Cooling System Makeshift Microdissipator Network Experimental Matter Compressor Advanced Terrain Scanner Improved Shield Generator Makeshift Hacking Suite Makeshift Hacking Suite System Mapper Overtuned Barrage Gun Overtuned Coil Gun Mini Grenade Launcher Dirty Datajack Datajack CPS Tube CPS Tube CPS Tube CPS Tube CPS Tube CPS Tube Junk Cannon Vortex Trap Vortex Trap DRS Beacon [Rating: 127] Favorites ----------- Power Light Deuterium Engine Engine Light Deuterium Engine Reactor Antimatter Reactor Propulsion Improved Treads Treads Improved Treads Leg Experimental Myomer Leg Wheel Overtuned Huge Scrapsphere Flight Unit Cooled Impulse Thruster Utility Huge Storage Unit Device Scrap Suit Storage Huge Storage Unit Processor Enhanced Optical Array Hackware System Shield Protection Enhanced Scrap Shield Weapon Cooled Pulse Rifle Energy Gun Cooled Pulse Rifle Energy Cannon Subdweller Beam Cannon Ballistic Gun Assault Rifle Launcher EMP Blaster Special Weapon Junk Cannon Impact Weapon Flail Piercing Weapon Makeshift Spear Special Melee Weapon Datajack Build | -11 -10 -10 -7 -7 -5 -5 -5 -5 -5 -5 -4 -4 ------- Run | Yrd Mat Sub Rec Scr Fac Was Fac Upp Upp War Pro Fac Slots Evolved 12 | . . . . . 10 . . . . . . 2 Power . | . . . . . . . . . . . . . Propulsion 2 | . . . . . . . . . . . . 2 Utility 8 | . . . . . 8 . . . . . . . Weapon 2 | . . . . . 2 . . . . . . . Parts Attached 128 | 7 6 21 4 24 24 3 4 6 4 19 4 2 Power 14 | 1 2 3 . 1 2 2 . . 1 2 . . Engine 10 | 1 2 3 . 1 2 1 . . . . . . Core . | . . . . . . . . . . . . . Reactor 4 | . . . . . . 1 . . 1 2 . . Propulsion 17 | 2 2 2 2 5 . . . . . 4 . . Treads 10 | 2 2 2 2 2 . . . . . . . . Leg 2 | . . . . 1 . . . . . 1 . . Wheel 4 | . . . . 2 . . . . . 2 . . Hover . | . . . . . . . . . . . . . Flight 1 | . . . . . . . . . . 1 . . Utility 47 | 2 . 1 1 8 13 1 4 3 1 8 3 2 Device 18 | 1 . . 1 1 7 . 2 1 1 3 1 . Storage 4 | 1 . 1 . 1 . . . . . 1 . . Processor 5 | . . . . . 2 . . 1 . 2 . . Hackware 4 | . . . . . 3 . . . . . . 1 Protection 16 | . . . . 6 1 1 2 1 . 2 2 1 Artifact . | . . . . . . . . . . . . . Weapon 50 | 2 2 15 1 10 9 . . 3 2 5 1 . Energy Gun 15 | 1 2 . . . 5 . . 1 2 4 . . Energy Cannon 8 | . . 7 . . . . . . . 1 . . Ballistic Gun 3 | 1 . . 1 1 . . . . . . . . Ballistic Cannon . | . . . . . . . . . . . . . Launcher 5 | . . 5 . . . . . . . . . . Special Weapon 6 | . . . . 2 2 . . 1 . . 1 . Impact Weapon 3 | . . 3 . . . . . . . . . . Slashing Weapon . | . . . . . . . . . . . . . Piercing Weapon 5 | . . . . 3 2 . . . . . . . Special Melee Weapon 5 | . . . . 4 . . . 1 . . . . Unidentified Prototypes 13 | . . . . 1 2 . . 1 . 8 . 1 Corrupted Parts 1 | . . 1 . . . . . . . . . . System Corruption 2 | . . 2 . . . . . . . . . . Parts Lost 21 | . . 2 1 . 6 . . . . 1 2 9 Power 5 | . . 1 . . 2 . . . . . . 2 Propulsion 1 | . . 1 . . . . . . . . . . Utility 11 | . . . 1 . 4 . . . . 1 . 5 Weapon 4 | . . . . . . . . . . . 2 2 Highest Loss Streak 8 | . . 1 1 . 2 . . . . 1 2 8 To Critical Strikes 1 | . . . . . . . . . . . . 1 Average Slot Usage (%) 88 | . 99 99 95 94 75 79 70 76 80 74 69 62 Engine 9 | . 13 13 14 14 4 4 5 5 . . . . Reactor 1 | . . . . . . . . . 4 7 10 8 Treads 18 | . 28 27 28 27 . . . . . . . . Wheel 1 | . . . . . 5 5 5 5 5 4 5 4 Device 9 | . 14 14 10 3 13 16 11 16 17 15 13 12 Storage 10 | . 14 14 14 14 5 5 5 5 5 5 5 4 Processor 4 | . . . . . 8 11 11 16 17 15 15 9 Hackware 1 | . . . . . 9 9 . . . . . . Protection 5 | . . . . 10 4 . 5 5 5 4 4 7 Energy Gun 4 | . 14 . . . 10 17 17 7 13 12 11 8 Energy Cannon 3 | . . 15 13 . . . . . . . . . Ballistic Gun 1 | . 14 . 3 . . . . . . . . . Impact Weapon 1 | . . 7 10 . . . . . . . . . Piercing Weapon 5 | . . . . 10 5 5 5 5 5 5 1 . Special Melee Weapon 4 | . . . . 12 . . . . . . . . Peak Build Rating 127 | 7 10 15 20 40 86 96 96 96 97 127 125 126 Average Rating 45 | 5 8 13 17 23 76 84 94 94 96 108 120 119 On Entrance 60 | . 7 10 13 17 34 82 96 96 95 96 120 123 Naked Turns . | . . . . . . . . . . . . . Heaviest Build 177 | 15 15 102 98 106 122 156 156 156 139 170 175 177 Greatest Support 46 | 40 46 46 46 43 20 20 20 20 20 25 20 20 Greatest Overweight (x) 8 | . . 2 2 5 6 7 7 7 6 8 8 8 Average Overweight (x) 3 | . . . 1 2 4 5 6 6 6 6 7 8 Largest Inventory Capacity 25 | 8 8 25 25 25 25 25 25 25 25 25 25 25 Average Capacity 22 | 7 8 14 25 25 25 25 25 25 25 25 25 25 Most Carried 25 | 6 8 15 25 25 25 25 25 25 25 25 25 21 Average Carried 21 | 3 7 10 23 24 23 23 25 23 24 24 22 19 Final Capacity 25 | 8 8 25 25 25 25 25 25 25 25 25 25 25 Final Carried 25 | 6 8 15 25 25 23 25 25 25 25 25 21 19 Class Distribution -------------------- 66% | Mutant 8% | Assassin 6% | Generator-Skirmisher 6% | Hacker-Tank 4% | Generator-Gunner Dominant Class ---------------- Mutant | -10/Materials Mutant | -10/Subcaves Mutant | -7/Recycling Mutant | -7/Scraptown Hacker-Tank | -5/Factory Hacker-Tank | -5/Waste Tank | -5/Factory Assassin | -5/Upper Caves Tank | -5/Upper Caves Generator-Gunner | -5/Warlord Generator-Skirmisher | -4/Proximity Caves Generator-Skirmisher | -4/Factory Resources | -11 -10 -10 -7 -7 -5 -5 -5 -5 -5 -5 -4 -4 ----------- Run | Yrd Mat Sub Rec Scr Fac Was Fac Upp Upp War Pro Fac Matter Collected 2653 | 303 91 348 90 479 347 35 . 153 19 719 49 20 Remotely . | . . . . . . . . . . . . . Salvage Created 4200 | 189 237 465 297 . 1675 . . 151 168 230 477 311 Parts 144 | 12 19 27 11 . 56 . . 8 . 1 8 2 Haulers Intercepted 2 | . . . . . 2 . . . . . . . Recyclers Shooed 1 | . . . . . 1 . . . . . . . Parts Field Recycled . | . . . . . . . . . . . . . Retrieved Matter . | . . . . . . . . . . . . . Parts Self-Destructed 52 | . . 14 . . . . . 4 . . 34 . Prevented 1 | . . . . . . . . 1 . . . . Kills | -11 -10 -10 -7 -7 -5 -5 -5 -5 -5 -5 -4 -4 ------- Run | Yrd Mat Sub Rec Scr Fac Was Fac Upp Upp War Pro Fac Combat Hostiles Destroyed 53 | . 9 10 1 . 18 . . 2 1 3 6 3 Melee 7 | . . 1 . . 5 . . . . . 1 . Guns 22 | . 9 . 1 . 4 . . 1 . 3 3 1 Cannons 3 | . . 2 . . 1 . . . . . . . AOE 4 | . . 4 . . . . . . . . . . Classes Destroyed 15 | 3 2 1 1 . 3 . . 1 . 2 2 . Worker 3 | 1 . . . . 2 . . . . . . . Builder 1 | . . . . . 1 . . . . . . . Tunneler 6 | 5 . . 1 . . . . . . . . . Hauler 2 | . . . . . 2 . . . . . . . Recycler 8 | 1 1 . 2 . 3 . . . . . . 1 Drone 1 | . . . . . . . . . . . 1 . Swarmer 9 | . 7 1 . . . . . . . . 1 . Grunt 18 | . 2 2 . . 11 . . . . . 1 2 Brawler 1 | . . . . . . . . . . 1 . . Duelist 2 | . . . . . . . . . . . 2 . Sentry 5 | . . . 1 . 2 . . 1 . . 1 . Hunter 2 | . . . . . . . . 1 1 . . . Programmer 7 | . . . . . 5 . . . . 1 . 1 Executioner 1 | . . . . . . . . . . 1 . . Subdweller 7 | . . 7 . . . . . . . . . . Packrat 4 | . . . . . . . . . 2 . 2 . Best Kill Streak 11 | 3 3 2 3 . 11 . . 1 1 1 2 2 Combat Bots Only 11 | . 3 2 1 . 11 . . 1 1 1 2 2 Max Kills in Single Turn 2 | 2 1 1 1 . 2 . . 1 1 1 1 1 Gunslinging . | . . . . . . . . . . . . . Exploded 1 | . . 1 . . . . . . . . . . Melee 1 | . . 1 . . 1 . . . . . 1 . Uniques/NPCs Destroyed . | . . . . . . . . . . . . . Combat | -11 -10 -10 -7 -7 -5 -5 -5 -5 -5 -5 -4 -4 -------- Run | Yrd Mat Sub Rec Scr Fac Was Fac Upp Upp War Pro Fac Hostile Shots Fired 521 | . 34 39 114 . 136 . . 8 55 37 48 50 Missed 171 | . 11 14 45 . 41 . . 1 20 11 14 14 Damage Taken 5805 | . 243 523 509 . 1923 . . 106 336 581 782 802 Core 886 | . 35 113 91 . 377 . . 17 37 65 134 17 Absorbed by Shields 453 | . . . . . 93 . . 39 111 210 . . Redirected to Shielding 40 | . . . . . . . . . . . . 40 Ignored by Resistances 27 | . . . . . 27 . . . . . . . Regen/Repaired (Parts) 53 | . . . . . 1 . . . . 52 . . Core Remaining (%) 47 | 100 . . . 4 . . . . . . 37 . Volleys Fired 169 | 15 16 23 11 . 30 . . 6 10 18 19 21 Largest 3 | 2 2 2 2 . 3 . . 3 3 3 3 2 Hottest 180 | 70 70 160 110 . 60 . . 60 180 100 60 40 Shots Fired 336 | 30 32 40 17 . 57 . . 10 22 54 42 32 Gun 248 | 30 32 . 4 . 42 . . 8 18 54 37 23 Cannon 28 | . . 15 13 . . . . . . . . . Launcher 25 | . . 25 . . . . . . . . . . Special 35 | . . . . . 15 . . 2 4 . 5 9 Kinetic 35 | 15 16 . 4 . . . . . . . . . Thermal 241 | 15 16 15 13 . 42 . . 8 18 54 37 23 Explosive . | . . . . . . . . . . . . . Electromagnetic 25 | . . 25 . . . . . . . . . . Impact 35 | . . . . . 15 . . 2 4 . 5 9 Robot Hit Streak 21 | 5 4 11 10 . 14 . . 6 13 14 18 21 Robot Miss Streak 4 | 3 2 2 3 . 1 . . 1 1 4 1 1 Penetration Max . | . . . . . . . . . . . . . Secondary Targets 5 | . 1 . . . . . . . . 2 2 . Max Gunslinging Chain 1 | . 1 . . . . . . . . 1 1 . Shots Hit Robots 263 | 17 18 20 12 . 73 . . 6 20 38 35 24 Core Hits 112 | 9 12 13 7 . 28 . . 3 1 20 13 6 Critical Kills . | . . . . . . . . . . . . . Critical Parts Destroyed 4 | . . . . . . . . 1 . . 1 2 Critical Strikes 21 | . 1 . . . 5 . . 1 1 7 4 2 Burn 16 | . 1 . . . 4 . . . 1 7 3 . Smash 4 | . . . . . . . . 1 . . 1 2 Impale 1 | . . . . . 1 . . . . . . . Melee Attacks 90 | . . 19 . . 55 . . 7 2 3 4 . Impact 19 | . . 19 . . . . . . . . . . Slashing . | . . . . . . . . . . . . . Piercing 71 | . . . . . 55 . . 7 2 3 4 . Sneak Attacks 15 | . . . . . 10 . . . 2 1 2 . Combat Hostiles 2 | . . . . . 2 . . . . . . . Follow-up Attacks 1 | . . . . . 1 . . . . . . . Damage Inflicted 9078 | 225 261 923 462 . 3264 . . 177 932 975 1031 828 Guns 3683 | 223 249 . 62 . 682 . . 98 510 873 578 408 Cannons 578 | . . 250 328 . . . . . . . . . Explosions 660 | . . 660 . . . . . . . . . . Melee 2069 | . . . . . 1556 . . . 198 102 213 . Ramming 99 | 2 12 13 72 . . . . . . . . . Kinetic 305 | 111 132 . 62 . . . . . . . . . Thermal 4013 | 112 117 307 328 . 682 . . 98 510 873 578 408 Explosive . | . . . . . . . . . . . . . Electromagnetic 603 | . . 603 . . . . . . . . . . Impact 1989 | . . . . . 1026 . . 79 224 . 240 420 Slashing . | . . . . . . . . . . . . . Piercing 2069 | . . . . . 1556 . . . 198 102 213 . Highest Corruption 23 | . . 3 3 . 6 6 6 6 6 6 2 23 Average Corruption 3 | . . 2 3 . 3 6 6 6 6 4 2 7 Corruption Purged . | . . . . . . . . . . . . . Corruption Blocked . | . . . . . . . . . . . . . Effects 116 | . . 24 29 . 14 8 4 15 10 2 8 2 Message Errors 33 | . . 5 4 . 8 2 . 6 3 1 4 . Matter Fused 32 | . . 8 7 . 4 1 3 4 . 1 3 1 Heat Flow Errors 11 | . . 2 4 . 1 . 1 . 2 . 1 . Energy Discharges 14 | . . 4 3 . . 2 . 3 2 . . . Parts Rejected 1 | . . 1 . . . . . . . . . . Data Loss (minor) 15 | . . 2 7 . 1 1 . 1 3 . . . Data Loss (major) 5 | . . 1 1 . . 2 . . . . . 1 Misfires 4 | . . 1 3 . . . . . . . . . Alerts 1 | . . . . . . . . 1 . . . . Overload Shots 10 | . . . . . . . . . 9 1 . . Overflow Damage 1158 | . . . 28 . 428 . . 79 334 . 118 171 Projectiles 676 | . . . 28 . 224 . . 79 154 . 20 171 Explosions . | . . . . . . . . . . . . . Melee 482 | . . . . . 204 . . . 180 . 98 . Knockbacks 16 | . . . . . 9 . . . 2 . 2 3 Impact 15 | . . . . . 8 . . . 2 . 2 3 Kinetic . | . . . . . . . . . . . . . Secondary 1 | . . . . . 1 . . . . . . . Self-Inflicted Damage 115 | . . 115 . . . . . . . . . . Shots 9 | . . 9 . . . . . . . . . . Rammed 16 | 2 4 3 7 . . . . . . . . . Targets Rammed 19 | 2 5 4 8 . . . . . . . . . Kicked . | . . . . . . . . . . . . . Crushed 3 | . 1 1 1 . . . . . . . . . Highest Temperature 442 | 45 81 169 360 . 442 . 162 6 88 12 236 9 Average Temperature 68 | 14 31 42 146 . 183 . 90 4 53 4 38 9 Received Heat Transfer 1005 | . 78 51 144 . 477 . . 21 27 24 81 102 Effects 3 | . . . 1 . 1 . . . . . 1 . Shutdowns 1 | . . . 1 . . . . . . . . . Energy Bleed 2 | . . . . . 1 . . . . . 1 . Siege Activations . | . . . . . . . . . . . . . Robots Corrupted 14 | . . 3 . . 6 . . 1 1 . 1 2 Combat Hostiles 14 | . . 3 . . 6 . . 1 1 . 1 2 Parts Fried 14 | . . 7 . . 2 . . . 1 . . 4 Impact Corruptions 18 | . . . . . 9 . . 1 2 . 2 4 Robots Melted 3 | . . . . . 2 . . . . . 1 . Combat Hostiles 3 | . . . . . 2 . . . . . 1 . Parts Melted 32 | 1 1 1 . . 9 . . 2 . 5 8 5 Heat Transferred 7986 | 333 407 433 444 . 1480 . . 185 809 1860 1332 703 Parts Sabotaged . | . . . . . . . . . . . . . Parts Stolen . | . . . . . . . . . . . . . Parts Stripped . | . . . . . . . . . . . . . Power Chain Reactions 3 | . . 3 . . . . . . . . . . Alert | -11 -10 -10 -7 -7 -5 -5 -5 -5 -5 -5 -4 -4 ------- Run | Yrd Mat Sub Rec Scr Fac Was Fac Upp Upp War Pro Fac Peak Influence 522 | 35 190 . 102 . 363 109 91 . . . . 522 Initial 450 | . 22 . 12 . . 109 76 . . . . 450 Average 109 | 10 80 . 20 . 150 109 88 . . . . 425 Maximum Alert Level 2 | . . . . . 1 . . . . . . 2 Low Security (%) 85 | 100 100 . 100 . 76 100 100 . . . . 1 Level 1 8 | . . . . . 23 . . . . . . 26 Level 2 5 | . . . . . . . . . . . . 71 Level 3 . | . . . . . . . . . . . . . Level 4 . | . . . . . . . . . . . . . Level 5 . | . . . . . . . . . . . . . High Security . | . . . . . . . . . . . . . Max Security . | . . . . . . . . . . . . . Squads Dispatched 8 | . . . . . 3 . . . . . 1 4 Investigation 3 | . . . . . 1 . . . . . . 2 Extermination 2 | . . . . . 1 . . . . . . 1 Reinforcement 1 | . . . . . . . . . . . . 1 Assault 2 | . . . . . 1 . . . . . 1 . Garrison . | . . . . . . . . . . . . . Intercept . | . . . . . . . . . . . . . Searches Triggered 1 | . . . . . . . . . . . . 1 Construction Impeded . | . . . . . . . . . . . . . Haulers Reinforced . | . . . . . . . . . . . . . Active Scanning Responses . | . . . . . . . . . . . . . Cargo Convoy Interrupts . | . . . . . . . . . . . . . Stealth | -11 -10 -10 -7 -7 -5 -5 -5 -5 -5 -5 -4 -4 --------- Run | Yrd Mat Sub Rec Scr Fac Was Fac Upp Upp War Pro Fac Distress Signals 6 | . . . 1 . 1 . . . . 2 1 1 Communications Jammed . | . . . . . . . . . . . . . Distress Signals . | . . . . . . . . . . . . . Times Spotted 164 | . 16 15 1 . 39 . 1 5 2 59 18 8 Peak Tracking Total 17 | . 5 5 1 . 9 . 1 3 1 17 7 4 Tactical Retreats 9 | . 2 1 . . 3 . . . 1 2 . . Traps | -11 -10 -10 -7 -7 -5 -5 -5 -5 -5 -5 -4 -4 ------- Run | Yrd Mat Sub Rec Scr Fac Was Fac Upp Upp War Pro Fac Traps Triggered 3 | . 2 . . . 1 . . . . . . . Indirectly . | . . . . . . . . . . . . . Trap Hack Attempts . | . . . . . . . . . . . . . Triggered . | . . . . . . . . . . . . . Disarmed . | . . . . . . . . . . . . . Reprogrammed . | . . . . . . . . . . . . . Reused . | . . . . . . . . . . . . . Traps Extracted . | . . . . . . . . . . . . . Installed . | . . . . . . . . . . . . . Triggered 23 | . . 1 . . . . . . . 22 . . Most Traps Carried 2 | . . . . 2 2 2 2 2 2 2 2 2 Machines | -11 -10 -10 -7 -7 -5 -5 -5 -5 -5 -5 -4 -4 ---------- Run | Yrd Mat Sub Rec Scr Fac Was Fac Upp Upp War Pro Fac Machines Disabled 4 | . . 1 . . 1 . . . . 1 . 1 Max in Single Turn 1 | . . 1 . . 1 . . . . 1 . 1 Garrison Access 2 | . . . . . 2 . . . . . . . Machines Repaired . | . . . . . . . . . . . . . Machines Dismantled . | . . . . . . . . . . . . . Machines Sabotaged . | . . . . . . . . . . . . . Overloaded Fab Kills . | . . . . . . . . . . . . . Hacking | -11 -10 -10 -7 -7 -5 -5 -5 -5 -5 -5 -4 -4 --------- Run | Yrd Mat Sub Rec Scr Fac Was Fac Upp Upp War Pro Fac Machines Accessed 29 | . 5 2 6 3 3 . . 1 1 4 . 4 Terminals 8 | . 4 . 1 . 1 . . . . . . 2 Fabricators . | . . . . . . . . . . . . . Repair Stations . | . . . . . . . . . . . . . Recycling Units 8 | . 1 . 5 . . . . . . . . 2 Scanalyzers . | . . . . . . . . . . . . . Garrison Access 2 | . . . . . 2 . . . . . . . Total Hacks 66 | . 10 5 10 11 8 . . 1 1 11 . 9 Successful 45 | . 4 5 7 11 2 . . 1 1 11 . 3 Failed 21 | . 6 . 3 . 6 . . . . . . 6 Catastrophic 7 | . 2 . 2 . 1 . . . . . . 2 Database Lockouts . | . . . . . . . . . . . . . Manual 24 | . 8 . 8 . 2 . . . . . . 6 Terminals 19 | . 8 . 3 . 3 . . . . . . 5 Fabricators . | . . . . . . . . . . . . . Repair Stations . | . . . . . . . . . . . . . Recycling Units 13 | . 2 . 7 . . . . . . . . 4 Scanalyzers . | . . . . . . . . . . . . . Garrison Access 5 | . . . . . 5 . . . . . . . Terminal Hacks 34 | . 3 5 1 11 1 . . 1 1 11 . . Record 17 | . . 4 . 3 . . . . . 10 . . Robot Analysis 9 | . 2 . . 7 . . . . . . . . Open Door 3 | . . . . . . . . 1 1 1 . . Unreport Threat 1 | . . . . . 1 . . . . . . . Locate Traps 1 | . 1 . . . . . . . . . . . Zone Layout 1 | . . . 1 . . . . . . . . . Derelict Proto ID Bank 2 | . . 1 . 1 . . . . . . . . Fabricator Hacks . | . . . . . . . . . . . . . Repair Station Hacks . | . . . . . . . . . . . . . Recycling Unit Hacks 1 | . . . . . . . . . . . . 1 Retrieve Components 1 | . . . . . . . . . . . . 1 Scanalyzer . | . . . . . . . . . . . . . Garrison Access Hacks 1 | . . . . . 1 . . . . . . . Seal Access 1 | . . . . . 1 . . . . . . . Unauthorized Hacks 7 | . . . 5 . . . . . . . . 2 Terminals 1 | . . . . . . . . . . . . 1 Botnet 1 | . . . . . . . . . . . . 1 Fabricators . | . . . . . . . . . . . . . Repair Stations 1 | . . . . . . . . . . . . 1 Recycling Units 5 | . . . 5 . . . . . . . . . Tunnel 5 | . . . 5 . . . . . . . . . Fedlink 1 | . . . . . . . . . . . . 1 Scanalyzers . | . . . . . . . . . . . . . Garrison Access . | . . . . . . . . . . . . . Data Cores Recovered . | . . . . . . . . . . . . . Used . | . . . . . . . . . . . . . Hacking Detections 11 | . 4 . 3 . 2 . . . . . . 2 Full Trace Events 4 | . 1 . 1 . 1 . . . . . . 1 Feedback Events 1 | . . . . . . . . . . . . 1 Hackware Fried 1 | . . . . . . . . . . . . 1 Feedback Blocked . | . . . . . . . . . . . . . Robot Schematics Acquired . | . . . . . . . . . . . . . Robots Built . | . . . . . . . . . . . . . Authchips . | . . . . . . . . . . . . . Time . | . . . . . . . . . . . . . Total Robot Build Rating . | . . . . . . . . . . . . . Part Schematics Acquired . | . . . . . . . . . . . . . Parts Built . | . . . . . . . . . . . . . Authchips . | . . . . . . . . . . . . . Time . | . . . . . . . . . . . . . Total Part Build Rating . | . . . . . . . . . . . . . Parts Repaired . | . . . . . . . . . . . . . Time . | . . . . . . . . . . . . . Parts Recycled . | . . . . . . . . . . . . . Recycled Matter . | . . . . . . . . . . . . . Retrieved Matter . | . . . . . . . . . . . . . Retrieved Components 4 | . . . . . . . . . . . . 4 Parts Scanalyzed . | . . . . . . . . . . . . . Part Schematics Acquired . | . . . . . . . . . . . . . Parts Damaged . | . . . . . . . . . . . . . Bothacking | -11 -10 -10 -7 -7 -5 -5 -5 -5 -5 -5 -4 -4 ------------ Run | Yrd Mat Sub Rec Scr Fac Was Fac Upp Upp War Pro Fac Used RIF Installer . | . . . . . . . . . . . . . Robots Hacked . | . . . . . . . . . . . . . Non-combat . | . . . . . . . . . . . . . Combat . | . . . . . . . . . . . . . Robot Hacks Applied . | . . . . . . . . . . . . . Relay Couplers Released 4 | . . . . . 4 . . . . . . . Programmers 4 | . . . . . 4 . . . . . . . Fabnet Peak Effective % . | . . . . . . . . . . . . . Robots Rewired 3 | . . . 1 . . . . . . . 2 . Allies Hacked . | . . . . . . . . . . . . . Hacks Repelled . | . . . . . . . . . . . . . Allies | -11 -10 -10 -7 -7 -5 -5 -5 -5 -5 -5 -4 -4 -------- Run | Yrd Mat Sub Rec Scr Fac Was Fac Upp Upp War Pro Fac Total Allies 3 | . . . 1 . . . . . . . 2 . Largest Group 2 | . . . 1 . . . . . . . 2 1 Highest-Rated Group 60 | . . . 16 . . . . . . . 60 30 Highest-Rated Ally 30 | . . . 16 . . . . . . . 30 30 Total Orders . | . . . . . . . . . . . . . Ally Attacks 5 | . . . 1 . . . . . . . 3 1 Total Damage 91 | . . . . . . . . . . . 32 59 Kills 1 | . . . . . . . . . . . . 1 Allies Corrupted . | . . . . . . . . . . . . . Allies Melted 3 | . . . . . . . . . . 3 . . Intel | -11 -10 -10 -7 -7 -5 -5 -5 -5 -5 -5 -4 -4 ------- Run | Yrd Mat Sub Rec Scr Fac Was Fac Upp Upp War Pro Fac Robot Analysis Total 9 | . 2 . . 7 . . . . . . . . Derelict Logs Recovered 7 | . . . . 5 . . . 1 1 . . . Drone Launches . | . . . . . . . . . . . . . Drone Recoveries . | . . . . . . . . . . . . . Exploration | -11 -10 -10 -7 -7 -5 -5 -5 -5 -5 -5 -4 -4 ------------- Run | Yrd Mat Sub Rec Scr Fac Was Fac Upp Upp War Pro Fac Turns Passed 15593 | 217 1177 1664 1467 5784 1429 257 140 567 296 1536 651 408 Spaces Moved 6979 | 97 476 710 440 1922 920 204 95 355 194 977 360 229 Core 2 | 2 . . . . . . . . . . . . Treads 3519 | 95 476 710 440 1798 . . . . . . . . Legs 2 | . . . . 1 . . . . . 1 . . Wheels 3456 | . . . . 123 920 204 95 355 194 976 360 229 Hover . | . . . . . . . . . . . . . Flight . | . . . . . . . . . . . . . Fastest Speed 50 | 50 160 160 240 110 110 120 120 130 130 130 140 150 Average Speed 198 | 157 160 198 316 294 119 122 139 130 130 139 149 150 Slowest Speed 570 | 160 160 320 320 370 130 140 140 140 130 570 150 150 Overloaded Moves . | . . . . . . . . . . . . . Propulsion Burnouts . | . . . . . . . . . . . . . Robots Hopped . | . . . . . . . . . . . . . Cave-ins Triggered . | . . . . . . . . . . . . . Exploration Rate (%) 49 | 8 76 41 75 94 34 88 3 50 32 91 47 8 Regions Visited 12 Branch Regions 7 Pre-discovered Areas 5 | . . . 5 . . . . . . . . . Known Exits Taken 2 | . . 1 . . . . . . . . 1 . Unknown Exits Taken 8 | 1 1 . 1 1 . . 1 1 1 1 . . Scrap Searched 21 | . . 2 . 12 . . . 3 . . 4 . Spaces Dug 36 | . . 7 . . 20 . . 7 . . 1 1 Terrain Destroyed 61 | . . 24 2 . 20 . . 8 2 . 3 2 Melee 33 | . . 6 . . 20 . . 7 . . . . Projectile 13 | . . 3 2 . . . . 1 2 . 3 2 AOE 15 | . . 15 . . . . . . . . . . Terrain Rammed . | . . . . . . . . . . . . . Walls Destroyed . | . . . . . . . . . . . . . Machines Disabled . | . . . . . . . . . . . . . Actions | -11 -10 -10 -7 -7 -5 -5 -5 -5 -5 -5 -4 -4 --------- Run | Yrd Mat Sub Rec Scr Fac Was Fac Upp Upp War Pro Fac Total 8322 | 126 861 885 487 2065 1125 212 102 442 217 1107 431 262 Wait 693 | . 335 87 5 34 77 . . 62 6 47 31 9 Move 6969 | 96 475 710 439 1921 920 203 94 354 193 976 359 229 Hop . | . . . . . . . . . . . . . Pick Up 106 | 6 13 14 12 34 8 1 . 2 1 15 . . Fast Attach 66 | 7 3 2 1 15 14 3 4 3 . 12 2 . Attach 35 | . 3 1 2 6 10 . . 3 2 4 2 2 Detach 15 | . . . 2 2 5 1 . 2 . 3 . . Swap 27 | . . 18 1 3 . . . . 2 3 . . Drop 122 | . 11 8 3 50 8 4 4 3 1 26 3 1 Fire 169 | 15 16 23 11 . 30 . . 6 10 18 19 21 Melee 88 | . . 19 . . 53 . . 7 2 3 4 . Ram . | . . . . . . . . . . . . . Kick . | . . . . . . . . . . . . . Crush 18 | 2 5 3 8 . . . . . . . . . Escape Stasis . | . . . . . . . . . . . . . Rewire 13 | . . . 3 . . . . . . . 10 . Trap . | . . . . . . . . . . . . . Miscellaneous 1 | . . . . . . . . . . . 1 . Route ------- -11/Scrapyard -10/Materials (discovered 5 exits: [*Mat x2] / [*Min x2] / *Sub) -10/Subcaves (discovered 3 exits: [*Mat x2] / *Rec) -7/Recycling (discovered 2 exits: *Fac / *Scr) -7/Scraptown (discovered 2 exits: *Fac x2) -5/Factory (discovered 2 exits: *Fac x2) -5/Waste -5/Factory -5/Upper Caves -5/Upper Caves (discovered 2 exits: Fac / *War) -5/Warlord -4/Proximity Caves -4/Factory History --------- Turn | Location | Event 33 | -11/Scrapyard | Discovered new exit (range 15) 218 | -11/Scrapyard | Entered Materials 306 | -10/Materials | Build established: Mutant 423 | -10/Materials | Discovered new exit (range 16) 705 | -10/Materials | Discovered new exit (range 10) 870 | -10/Materials | Discovered new exit (range 7) 1049 | -10/Materials | Discovered new exit (range 5) 1369 | -10/Materials | Discovered new exit (range 9) 1395 | -10/Materials | Entered Subcaves 1403 | -10/Subcaves | Discovered new exit (range 8) 1467 | -10/Subcaves | Discovered new exit (range 14) 1659 | -10/Subcaves | Visited 4L-MR0's lab 1681 | -10/Subcaves | Found Power Bank 2139 | -10/Subcaves | Shifting Twisted Machinery released Sub. Power Source 2159 | -10/Subcaves | Shifting Twisted Machinery released Mak. Shrapnel Gun 2301 | -10/Subcaves | Visited Clippyterm 2305 | -10/Subcaves | Identified exit to Recycling 2305 | -10/Subcaves | Learned Factory stockpile data 2385 | -10/Subcaves | A swath of the cavern ceiling suddenly collapsed 2928 | -10/Subcaves | Core integrity fell below 50% 3059 | -10/Subcaves | Entered Recycling 3912 | -7/Recycling | Discovered new exit (range 8) 4098 | -7/Recycling | Core integrity fell below 20% 4460 | -7/Recycling | Scanned before Scraplab entrance 4502 | -7/Recycling | Entered Scraplab 4521 | -7/Recycling | Discovered new exit (range 2) 4526 | -7/Recycling | Entered Scraptown 4526 | -7/Scraptown | System corruption cleaned by C-Scrubber 5306 | -7/Scraptown | Discovered new exit (range 5) 5584 | -7/Scraptown | Scanned Subdweller tech in exchange for log data 5591 | -7/Scraptown | Learned Research security intel 5597 | -7/Scraptown | Learned Factory trap positions 5600 | -7/Scraptown | Learned location of 1 exit from Factory 5603 | -7/Scraptown | Learned Factory stockpile data 5687 | -7/Scraptown | Visited Bundlers 5994 | -7/Scraptown | Visited Science Testing Area 6075 | -7/Scraptown | Visited Observation Area 6899 | -7/Scraptown | Visited Comm Corps 7143 | -7/Scraptown | Visited Symbiants 7345 | -7/Scraptown | Visited Scrapoid Research Area 7464 | -7/Scraptown | Visited SPCMW 7579 | -7/Scraptown | Visited UFD Registry 7579 | -7/Scraptown | Registered with UFD as "Gausscase" 7711 | -7/Scraptown | Visited Abandonware Association 7783 | -7/Scraptown | Learned abandonware demo "REBOOT5.EXE" 7861 | -7/Scraptown | Visited Junk Cannon Lab 7896 | -7/Scraptown | Found Prototype Special Weapon 7896 | -7/Scraptown | Identified Junk Cannon 8123 | -7/Scraptown | Delivered Scrap Shield to a Scientist 8395 | -7/Scraptown | Visited DA-N13 Charitable Foundation 8462 | -7/Scraptown | Found DCF Scrap (30 items) 8571 | -7/Scraptown | Visited Modified Component R&D 8649 | -7/Scraptown | Visited Analyses Database 8714 | -7/Scraptown | Visited Derelict Rescue Squad 8743 | -7/Scraptown | Found DRS Beacon 8831 | -7/Scraptown | Visited LU-1G1's Boring Crew 8875 | -7/Scraptown | Visited Curators Association 9386 | -7/Scraptown | Visited Science Guys 9517 | -7/Scraptown | Visited Research Penetration Think Tank 9862 | -7/Scraptown | Found Scrap Suit 9906 | -7/Scraptown | Found Scrap Suit 9953 | -7/Scraptown | Discovered new exit (range 3) 10310 | -7/Scraptown | Entered Factory 10310 | -5/Factory | Evolved 10 slots: Utility x8, Weapon x2 10311 | -5/Factory | Identified exit to Factory 10312 | -5/Factory | Loaded intel: 113 trap records 10616 | -5/Factory | Build established: Derelict-Mutant 10910 | -5/Factory | Destroyed 11 combat bots 11167 | -5/Factory | Spotted B-75 Beast 11192 | -5/Factory | Discovered exit to Factory (range 21) 11204 | -5/Factory | Build established: Hacker-Tank 11739 | -5/Factory | Sucked down chute 11739 | -5/Factory | Entered Waste 11739 | -5/Waste | The area was eerily silent 11956 | -5/Waste | Found Damper Plating 11969 | -5/Waste | Discovered new exit (range 13) 11996 | -5/Waste | Entered Factory 12011 | -5/Factory | Found Unknown Device 12011 | -5/Factory | Identified Launcher Loader 12114 | -5/Factory | Discovered new exit (range 7) 12136 | -5/Factory | Entered Upper Caves 12138 | -5/Upper Caves | UFD Scientist delivered a prototype 12149 | -5/Upper Caves | Found Prototype Protection 12149 | -5/Upper Caves | Identified Enh. Scrap Shield 12285 | -5/Upper Caves | Attracted the attention of an 0b10 checkpoint 12450 | -5/Upper Caves | Build established: Assassin 12502 | -5/Upper Caves | Encountered a Warlord checkpoint 12595 | -5/Upper Caves | Discovered new exit (range 15) 12703 | -5/Upper Caves | Entered another Upper Caves area 12769 | -5/Upper Caves | Spotted B-75 Beast 12995 | -5/Upper Caves | Discovered new exit (range 3) 12999 | -5/Upper Caves | Entered Warlord 13037 | -5/Warlord | Discovered new exit (range 19) 13054 | -5/Warlord | System corruption cleaned by Quarantine Array 13638 | -5/Warlord | Rebuked by Warlord 13650 | -5/Warlord | Warlord's base attacked by MAIN.C 13681 | -5/Warlord | Attached Power Bank, gained temporary slots: Power x3 13683 | -5/Warlord | Found Prototype Reactor 13683 | -5/Warlord | Identified Vortex Chain Reactor 13732 | -5/Warlord | Found Prototype Hackware 13736 | -5/Warlord | Found Prototype Processor 13736 | -5/Warlord | Identified Exp. Target Analyzer 13878 | -5/Warlord | Found Prototype Energy Cannon 13878 | -5/Warlord | Identified Vortex Driver 13884 | -5/Warlord | Found Prototype Energy Gun 13884 | -5/Warlord | Identified Vortex Rifle 13897 | -5/Warlord | Found Vortex Driver 13975 | -5/Warlord | Build established: Generator-Gunner 14000 | -5/Warlord | Warlord forces counterattacked 14103 | -5/Warlord | Spotted Striker 14103 | -5/Warlord | Spotted Striker 14103 | -5/Warlord | Spotted Striker 14107 | -5/Warlord | Spotted Executioner 14154 | -5/Warlord | Destroyed Executioner 14235 | -5/Warlord | Lost 18 allies 14325 | -5/Warlord | Warlord base infiltrated, sounded retreat 14326 | -5/Warlord | Enhanced Grunt warped into view 14326 | -5/Warlord | Enhanced Grunt warped into view 14326 | -5/Warlord | Enhanced Grunt warped into view 14326 | -5/Warlord | Enhanced Demolisher warped into view 14326 | -5/Warlord | Enhanced Demolisher warped into view 14326 | -5/Warlord | Enhanced Demolisher warped into view 14337 | -5/Warlord | Spotted Striker 14369 | -5/Warlord | Lost 4 allies 14440 | -5/Warlord | Spotted B-86 Titan 14440 | -5/Warlord | Spotted Striker 14441 | -5/Warlord | Spotted Executioner 14482 | -5/Warlord | Spotted Executioner 14493 | -5/Warlord | Spotted Striker 14499 | -5/Warlord | Spotted Executioner 14535 | -5/Warlord | Entered Proximity Caves 14537 | -4/Proximity Caves | Attracted the attention of an 0b10 checkpoint 14539 | -4/Proximity Caves | Core integrity fell below 50% 14555 | -4/Proximity Caves | Lost 24 allies 14619 | -4/Proximity Caves | Spotter reported a threat 14643 | -4/Proximity Caves | Spotter reported a threat 14701 | -4/Proximity Caves | Attracted the attention of an 0b10 outpost 14702 | -4/Proximity Caves | Activated DRS Beacon 14826 | -4/Proximity Caves | Build established: Generator-Skirmisher 14910 | -4/Proximity Caves | Spotter reported a threat 15148 | -4/Proximity Caves | Discovered exit to Factory (range 15) 15186 | -4/Proximity Caves | Entered Factory 15186 | -4/Factory | Accompanied by 1 ally 15186 | -4/Factory | Evolved 2 slots: Propulsion x2 15271 | -4/Factory | Identified System Mapper 15272 | -4/Factory | System Mapper fried by hacking feedback 15468 | -4/Factory | Search patrols dispatched 15575 | -4/Factory | P-70 Sage assimilated allied Warrior 7b 15587 | -4/Factory | System corruption reached 10% 15594 | -4/Factory | Self-destructed Last Messages --------------- 15586_ System corrupted by crushing effect (+3). 15587_ K-01 Serf collects debris. 15587_ Temporary Power slot lost. 15589_ K-01 Serf collects debris. 15589_ Critical hit (Burn: +37). 15589_ Penetrated by Slug. 15589_ Cld. Pulse Rifle destroyed. 15589_ Adv. Terrain Scanner destroyed. 15589_ System corrupted by crushing effect (+2). 15589_ System corrupted by crushing effect (+5). 15590_ Y-64 Sentinel heat damages Imp. Treads. 15590_ K-01 Serf collects debris. 15591_ System corrupted: Matter fused (-8). 15592_ Exp. Optical Array destroyed. 15592_ System corrupted by crushing effect (+3). 15592_ Knocked back. 15592_ Penetrated by Slug. 15592_ Assembly Bed disabled. 15593_ K-01 Serf collects debris. 15594_ Junk Cannon destroyed. Map ----- +----------------------------------------------------+ | ## ## ? ? ? ????????????????????????? | | ###+###+##### ? ? ??#???????????????????????? | | ### ## ##?# ? # ??????????????????????? | | #### ""?"" # ??????????????????????? | | ###/## #### """"" ?? ????????????????????????? | | ## ####? ? ?# ??????????????????????? | | """## ######## ########???? ???#???????????????? | | Y"## #######?########## ??? ?????????????????? | | """## ######?########### ? ? ????????????????? | | ## #####################??? #?#??#??????????? | | ## ##############?######?##???#?????????????? | | ####### ############### ???#????#?????????? | | ###?###% # ""??? #???####??????????? | | ####### # """"" ? ##??????????????? | | """"###% + """ ????#????#????????? | | "T""### # ? ?? ?? ??##?#?#????????? | | #######?## ######? ????????? | | ###?#####? ? # ?????????? | | ####T ### #??????????? | | " % ? ?#? ??????? | | ###### ? ? ??""" ?????? | | " ########### m ?? ? ? "R ??????? | | ^ ############ ###/####### ? ?# "?" ?????? | | " ############ # pkY ###?# ? ? # "? ?????? | | ############ + ###???# ?#?# ????????? | | " # ! ####### k@# ?# ?##?#???#?????? | | # ####### #? / ? +? ? ?? ????? | | ! + """####?## b #"" # ??# ? ?? ?????? | | ##### # Y"####### #"" ? ?? ?# ? ?????? | | ##### # """####### #"T? ?# ? # ? ?????? | | ##### # ####### #"" # ? #? ? ??????? | | ##### ##+########### #?"? ? ?+ ? ?????? | | +?#### # ; # ?# ? # ?????? | | #### # """" ; #####?#? ####?????????? | | ?#### # """" # ########+####?#?#??????? | | ??#### # """" ####;### ? ? ????????? | | + + """ #### ### ?? ? ??#??????? | | ?######### """" #?###### ?? ?#???????? | | ? ##?#?#### """" # ? # ? ????????? | | ??#?####### ######## ? ? ??#??????? | | ? #?###??###############?### ?? ???#??????? | | ???#?##??######?######?#?######?##?#?#??#????????? | | | | | | | | | | | | | | | | | +----------------------------------------------------+ Best States ------------- Heat Dissipation 71 Energy Generation 71 Energy Capacity 925 Matter Stores 300 Matter Capacity 300 Sight Range 23 Terrain Scan Range 20 Terrain Scan Density 210 Armor Coverage 1600 Resistance: KI 20 Resistance: EM 90 Weapon Shielding 66 Evasion (%) 40 Melee Accuracy 8 Target Analysis 10 Recoil Reduction 2 Offensive Hacking 10 Defensive Hacking 20 Authchip Count 5 Item Schematics ----------------- None Robot Schematics ------------------ None Fabricated ------------ Nothing Alien Tech Used ----------------- None Achievements -------------- None Challenges ------------ None Game ------ Seed RocketThermoelectricBeacon Manual? 0 Play Time 01:25:10 Cumulative 770.6 hours Start 2024.08.07 @ 18:33:14 End 2024.08.08 @ 00:27:55 Sessions 3 Manual Loads 0 Difficulty Rogue Special Mode None Game No. 742 Rogue 742 Adventurer 0 Explorer 0 Win Type - Total 39 Types 14/4/11/2/0/0/5/2/1 Lore% 75 Gallery% 89 Achievement% 84 Wizard Run 0 Options --------- Layout 0 ASCII 0 Keyboard 0 Movement Numpad Keybinds 0 Fullscreen 1 Font 18/Smallcaps Map View 76x50 Zoom Use 0% Tactical HUD 1 Map Filters NONE Filters NONE Steam 1 RUN: 21fe5018-dc8d-4b91-9549-8bd89d49da01